fUSD/lending_fUSD_20250103
["ID","MTS","AMOUNT","RATE_DAILY","PERIOD"]
[347496038,1735876265241,-1836.98,0.0001003,2]
[347496039,1735876265251,-1057.82,0.0001003,2]
[347496040,1735876265260,-500.0,0.0001003,2]
[347496041,1735876265269,-500.0,0.0001003,2]
[347496042,1735876265278,-500.0,0.0001003,2]
[347496043,1735876265287,-500.0,0.0001003,2]
[347496044,1735876265296,-500.0,0.0001003,2]
[347496045,1735876265306,-2755.58,0.0001003,2]
[347496046,1735876265314,-500.0,0.0001003,2]
[347496047,1735876265323,-500.0,0.0001003,2]
[347496048,1735876265332,-500.0,0.0001003,2]
[347496049,1735876265341,-500.0,0.0001003,2]
[347496050,1735876265350,-1197.31,0.0001003,2]
[347496051,1735876265359,-500.0,0.0001003,2]
[347496052,1735876265369,-500.0,0.0001003,2]
[347496053,1735876265379,-500.0,0.0001003,2]
[347496054,1735876265388,-500.0,0.0001003,2]
[347496055,1735876265397,-205.84,0.0001003,2]
[347496056,1735876265406,-434.27978136,0.0001003,2]
[347496057,1735876265415,-589.52,0.0001003,2]
[347496058,1735876265425,-2866.98,0.0001003,2]
[347496059,1735876265434,-500.0,0.0001003,2]
[347496060,1735876265443,-518.85,0.0001003,2]
[347496061,1735876265452,-500.0,0.0001003,2]
[347496062,1735876265461,-500.0,0.0001003,2]
[347496063,1735876265470,-500.0,0.0001003,2]
[347496064,1735876265481,-500.0,0.0001003,2]
[347496065,1735876265490,-500.0,0.0001003,2]
[347496066,1735876265499,-3039.13,0.0001003,2]
[347496067,1735876265508,-500.0,0.0001003,2]
[347496068,1735876265521,-500.0,0.0001003,2]
[347496069,1735876265531,-500.0,0.0001003,2]
[347496070,1735876265540,-777.73,0.0001003,2]
[347496071,1735876265549,-500.0,0.0001003,2]
[347496072,1735876265558,-500.0,0.0001003,2]
[347496073,1735876265567,-500.0,0.0001003,2]
[347496074,1735876265576,-500.0,0.0001003,2]
[347496075,1735876265586,-500.0,0.0001003,2]
[347496076,1735876265595,-500.0,0.0001003,2]
[347496077,1735876265604,-1925.24,0.0001003,2]
[347496078,1735876265614,-500.0,0.0001003,2]
[347496079,1735876265623,-454.50770995,0.0001003,2]
[347496080,1735876265635,-45.49229005,0.0001003,2]
[347496081,1735876265645,-500.0,0.0001003,2]
[347496082,1735876265654,-500.0,0.0001003,2]
[347496083,1735876265667,-3371.43,0.0001003,2]
[347496084,1735876265676,-500.0,0.0001003,2]
[347496085,1735876265686,-729.82,0.0001003,2]
[347496086,1735876265695,-500.0,0.0001003,2]
[347496087,1735876265704,-500.0,0.0001003,2]
[347496088,1735876265713,-4.21249019,0.0001003,2]
[347496089,1735876265725,-495.78750981,0.0001003,2]
[347496090,1735876265734,-500.0,0.0001003,2]
[347496091,1735876265743,-500.0,0.0001003,2]
[347496092,1735876265754,-500.0,0.0001003,2]
[347496093,1735876265763,-1549.51,0.0001003,2]
[347496094,1735876265773,-500.0,0.0001003,2]
[347496095,1735876265782,-500.0,0.0001003,2]
[347496096,1735876265791,-500.0,0.0001003,2]
[347496097,1735876265801,-1342.03,0.0001003,2]
[347496098,1735876265811,-500.0,0.0001003,2]
[347496099,1735876265820,-500.0,0.0001003,2]
[347496100,1735876265830,-387.61491039,0.0001003,2]
[347496101,1735876265840,-3938.35,0.0001003,2]
[347496102,1735876265849,-447.53668371,0.0001003,2]
[347496103,1735876266968,-500.0,9.755e-05,2]
[347496104,1735876266981,-500.0,9.757e-05,2]
[347496105,1735876266990,-507.63,9.757e-05,2]
[347496106,1735876266999,-500.0,0.00010029,2]
[347496107,1735876267009,-52.46331629,0.0001003,2]
[347496108,1735876267018,-500.0,0.0001003,2]
[347496109,1735876267028,-500.0,0.0001003,2]
[347496110,1735876267039,-1182.49,0.0001003,2]
[347496111,1735876267048,-1198.98,0.0001003,2]
[347496112,1735876267057,-500.0,0.0001003,2]
[347496113,1735876267066,-500.0,0.0001003,2]
[347496114,1735876267075,-2187.06,0.0001003,2]
[347496115,1735876267085,-500.0,0.0001003,2]
[347496116,1735876267094,-719.11,0.0001003,2]
[347496117,1735876267103,-500.0,0.0001003,2]
[347496118,1735876267113,-500.0,0.0001003,2]
[347496119,1735876267123,-3814.78,0.0001003,2]
[347496120,1735876267132,-2010.49,0.0001003,2]
[347496121,1735876267141,-500.0,0.0001003,2]
[347496122,1735876267150,-500.0,0.0001003,2]
[347496123,1735876267159,-1324.74,0.0001003,2]
[347496124,1735876267169,-500.0,0.0001003,2]
[347496125,1735876267178,-1948.86,0.0001003,2]
[347496126,1735876267187,-500.0,0.0001003,2]
[347496127,1735876267196,-500.0,0.0001003,2]
[347496128,1735876267205,-500.0,0.0001003,2]
[347496129,1735876267214,-500.0,0.0001003,2]
[347496130,1735876267224,-1692.48,0.0001003,2]
[347496131,1735876267234,-500.0,0.0001003,2]
[347496132,1735876267243,-500.0,0.0001003,2]
[347496133,1735876267252,-2984.99,0.0001003,2]
[347496134,1735876267261,-500.0,0.0001003,2]
[347496135,1735876267271,-378.66583148,0.0001003,2]
[347496136,1735876267281,-500.0,0.0001003,2]
[347496137,1735876267290,-500.0,0.0001003,2]
[347496138,1735876267299,-1467.22,0.0001003,2]
[347496139,1735876267308,-500.0,0.0001003,2]
[347496140,1735876267319,-500.0,0.0001003,2]
[347496141,1735876267330,-500.0,0.0001003,2]
[347496142,1735876267339,-500.0,0.0001003,2]
[347496143,1735876267349,-1901.73,0.0001003,2]
[347496144,1735876267357,-500.0,0.0001003,2]
[347496145,1735876267368,-500.0,0.0001003,2]
[347496146,1735876267377,-507.0,0.0001003,2]
[347496147,1735876267387,-593.53,0.0001003,2]
[347496148,1735876267397,-500.0,0.0001003,2]
[347496149,1735876267408,-500.0,0.0001003,2]
[347496150,1735876267418,-1223.91027281,0.0001003,2]
[347496151,1735876267429,-937.69234994,0.0001003,2]
[347496152,1735876267440,-546.006,0.0001003,2]
[347496153,1735876267505,-362.02612854,9.754e-05,2]
[347496154,1735876267516,-137.97387146,9.754e-05,2]
[347496155,1735876267525,-218.23539278,0.0001003,2]
[347496156,1735876267537,-378.78294716,0.0001003,2]
[347496157,1735876267548,-813.5,0.0001003,2]
[347496158,1735876267560,-590.26303731,0.0001003,2]
[347496159,1735876267569,-129.69495028,0.0001003,2]
[347496160,1735876267580,-370.30504972,0.0001003,2]
[347496161,1735876267590,-542.0411012,0.0001003,2]
[347496162,1735876267601,-583.3188988,0.0001003,2]
[347496163,1735876267610,-500.0,0.0001003,2]
[347496164,1735876267619,-500.0,0.0001003,2]
[347496165,1735876267628,-500.0,0.0001003,2]
[347496166,1735876267637,-500.0,0.0001003,2]
[347496167,1735876267646,-495.70536028,0.0001003,2]
[347496168,1735876267657,-2794.71,0.0001003,2]
[347496169,1735876267667,-826.26574092,0.0001003,2]
[347496170,1735876267678,-157.77425908,0.0001003,2]
[347496171,1735876267687,-500.0,0.0001003,2]
[347496172,1735876267697,-644.7614871,0.0001003,2]
[347496173,1735876267706,-1606.12,0.0001003,2]
[347496174,1735876267715,-2235.31,0.0001003,2]
[347496175,1735876267725,-500.0,0.0001003,2]
[347496176,1735876267736,-11464.53,0.0001003,2]
[347496177,1735876267746,-500.0,0.0001003,2]
[347496178,1735876267755,-1422.23,0.0001003,2]
[347496179,1735876267764,-500.0,0.0001003,2]
[347496180,1735876267773,-2235.83,0.0001003,2]
[347496181,1735876267782,-500.0,0.0001003,2]
[347496182,1735876267792,-500.0,0.0001003,2]
[347496183,1735876267801,-500.0,0.0001003,2]
[347496184,1735876267811,-240.0559491,0.0001003,2]
[347496185,1735876267823,-3726.9440509,0.0001003,2]
[347496186,1735876267831,-500.57500642,0.0001003,2]
[347496187,1735876267840,-1459.29,0.0001003,2]
[347496188,1735876267849,-5483.67,0.0001003,2]
[347496189,1735876267858,-3402.55,0.0001003,2]
[347496190,1735876267867,-1145.27,0.0001003,2]
[347496191,1735876267875,-500.0,0.0001003,2]
[347496192,1735876267884,-2310.18,0.0001003,2]
[347496193,1735876267894,-500.0,0.0001003,2]
[347496194,1735876267902,-9444.66,0.0001003,2]
[347496195,1735876267911,-2376.74,0.0001003,2]
[347496196,1735876267920,-500.0,0.0001003,2]
[347496197,1735876267929,-2340.82,0.0001003,2]
[347496198,1735876267938,-386.46317796,0.0001003,2]
[347496199,1735876267947,-500.0,0.0001003,2]
[347496200,1735876267956,-500.0,0.0001003,2]
[347496201,1735876267965,-500.0,0.0001003,2]
[347496202,1735876267975,-500.0,0.0001003,2]
[347496203,1735876267984,-3720.35,0.0001003,2]
[347496204,1735876267993,-500.0,0.0001003,2]
[347496205,1735876268002,-6483.05,0.0001003,2]
[347496206,1735876268011,-1246.27,0.0001003,2]
[347496207,1735876268020,-3292.1,0.0001003,2]
[347496208,1735876268028,-553.39144641,0.0001003,2]
[347496209,1735876268037,-3452.12,0.0001003,2]
[347496210,1735876268046,-500.0,0.0001003,2]
[347496211,1735876268056,-1217.64,0.0001003,2]
[347496212,1735876268065,-500.0,0.0001003,2]
[347496213,1735876268074,-1499.59,0.0001003,2]
[347496214,1735876268083,-500.0,0.0001003,2]
[347496215,1735876268093,-316.05487931,0.0001003,2]
[347496216,1735876274147,311.25,9.071e-05,2]
[347496217,1735876463753,556.17,8.946e-05,2]
[347496219,1735876518902,1000.0,8.876e-05,2]
[347496222,1735876586773,1500.0,8.6e-05,2]
[347496223,1735876586869,1500.0,8.675e-05,2]
[347496224,1735876587162,1500.0,8.286e-05,2]
[347496225,1735876646797,1500.0,8.641e-05,2]
[347496226,1735876667966,150.0,8.774e-05,2]
[347496227,1735876668082,150.0,9.089e-05,2]
[347496228,1735876727618,250.0,8.703e-05,2]
[347496229,1735876759851,163.3,8.703e-05,2]
[347496230,1735876786198,645.09,8.703e-05,2]
[347496231,1735876924668,1778.79,8.219e-05,2]
[347496233,1735876989524,152.0,0.00011292,28]
[347496234,1735876989881,152.0,0.00011226,27]
[347496235,1735876990191,152.0,0.0001116,26]
[347496236,1735876990525,152.0,0.00011094,25]
[347496237,1735876991162,152.0,0.00011028,24]
[347496238,1735876991484,152.0,0.00010962,23]
[347496239,1735876991693,152.0,0.00010897,22]
[347496240,1735876991835,152.0,0.00010831,21]
[347496241,1735876992231,152.0,0.00010765,20]
[347496242,1735876992578,152.0,0.00010699,19]
[347496243,1735876993963,152.0,0.00010633,18]
[347496244,1735876994043,152.0,0.00010567,17]
[347496245,1735876994122,152.0,0.00010501,16]
[347496246,1735876994383,152.0,0.00010435,15]
[347496247,1735876994681,152.0,0.00010369,14]
[347496248,1735876995255,152.0,0.00010303,13]
[347496249,1735876995434,152.0,0.00010238,12]
[347496250,1735877093020,2000.0,8.696e-05,2]
[347496251,1735877271734,250.0,8.748e-05,2]
[347496252,1735877381136,1102.8,0.0002,120]
[347496253,1735877395478,335.75,8.766e-05,2]
[347496256,1735877432390,-1189.367004,9.104e-05,2]
[347496257,1735877432543,-6446.87036724,9.104e-05,2]
[347496258,1735877432553,-276.332568,9.111e-05,2]
[347496259,1735877432564,-23.667432,9.111e-05,2]
[347496260,1735877432573,-1057.0,9.112e-05,2]
[347496261,1735877432583,-1057.0,9.112e-05,2]
[347496262,1735877432592,-1057.0,9.112e-05,2]
[347496263,1735877432602,-1057.0,9.112e-05,2]
[347496264,1735877432611,-1057.0,9.329e-05,2]
[347496265,1735877432620,-463.17,9.482e-05,2]
[347496266,1735877432630,-999.99,9.482e-05,2]
[347496267,1735877432639,-456.53,9.482e-05,2]
[347496268,1735877432649,-4534.21384965,9.482e-05,2]
[347496269,1735877432677,-450.653,9.482e-05,2]
[347496270,1735877432778,-5015.12315035,9.482e-05,2]
[347496271,1735877432789,-150.99,9.482e-05,2]
[347496272,1735877432799,-150.99,9.482e-05,2]
[347496273,1735877432809,-213.627,9.53e-05,2]
[347496275,1735877432818,-152.0,9.644e-05,3]
[347496277,1735877432827,-2500.0,9.653e-05,2]
[347496279,1735877432836,-5000.0,9.653e-05,2]
[347496281,1735877432845,-495.44,9.701e-05,2]
[347496283,1735877432854,-152.0,9.71e-05,4]
[347496284,1735877432864,-11465.89330875,9.745e-05,2]
[347496286,1735877432873,-500.0,9.752e-05,2]
[347496287,1735877432882,-1603.36,9.752e-05,2]
[347496289,1735877432891,-8994.01,9.752e-05,2]
[347496291,1735877432901,-7815.31,9.752e-05,2]
[347496293,1735877432910,-7589.39,9.752e-05,2]
[347496295,1735877432920,-3142.44,9.752e-05,2]
[347496297,1735877432929,-13034.53,9.752e-05,2]
[347496299,1735877432939,-1821.18,9.752e-05,2]
[347496301,1735877432948,-1688.24,9.752e-05,2]
[347496303,1735877432957,-3405.88,9.752e-05,2]
[347496306,1735877432966,-500.0,9.752e-05,2]
[347496309,1735877432975,-1106.76,9.752e-05,2]
[347496312,1735877432985,-790.81,9.752e-05,2]
[347496315,1735877432997,-500.0,9.752e-05,2]
[347496318,1735877433007,-1031.92,9.752e-05,2]
[347496321,1735877433016,-154.98,9.753e-05,2]
[347496324,1735877433026,-860.77,9.753e-05,2]
[347496327,1735877433036,-778.76,9.753e-05,2]
[347496330,1735877433044,-268.13383279,9.753e-05,2]
[347496333,1735877433073,-829.11616721,9.753e-05,2]
[347496335,1735877433082,-1141.83,9.753e-05,2]
[347496362,1735877433091,-500.0,9.753e-05,2]
[347496370,1735877433409,-500.0,9.753e-05,2]
[347496372,1735877433418,-500.0,9.753e-05,2]
[347496374,1735877433427,-500.0,9.753e-05,2]
[347496376,1735877433437,-500.0,9.753e-05,2]
[347496378,1735877433446,-555.97468766,9.753e-05,2]
[347496382,1735877433475,-1311.64531234,9.753e-05,2]
[347496384,1735877433485,-1871.57,9.753e-05,2]
[347496386,1735877433494,-500.0,9.753e-05,2]
[347496388,1735877433508,-500.0,9.753e-05,2]
[347496390,1735877433517,-610.52,9.753e-05,2]
[347496392,1735877433527,-500.0,9.753e-05,2]
[347496394,1735877433536,-500.0,9.753e-05,2]
[347496396,1735877433545,-500.0,9.753e-05,2]
[347496398,1735877433555,-500.0,9.753e-05,2]
[347496400,1735877433564,-500.0,9.753e-05,2]
[347496402,1735877433573,-1330.27,9.753e-05,2]
[347496404,1735877433582,-577.30038413,9.753e-05,2]
[347496406,1735877433592,-500.0,9.753e-05,2]
[347496407,1735877433601,-500.0,9.753e-05,2]
[347496409,1735877433610,-500.0,9.753e-05,2]
[347496411,1735877433619,-500.0,9.753e-05,2]
[347496413,1735877433628,-500.0,9.753e-05,2]
[347496415,1735877433639,-500.0,9.753e-05,2]
[347496417,1735877433648,-606.5,9.753e-05,2]
[347496419,1735877433658,-500.0,9.753e-05,2]
[347496421,1735877433667,-500.0,9.753e-05,2]
[347496423,1735877433677,-500.0,9.753e-05,2]
[347496425,1735877433687,-1275.46,9.753e-05,2]
[347496427,1735877433696,-500.0,9.753e-05,2]
[347496429,1735877433706,-500.0,9.753e-05,2]
[347496431,1735877433716,-2721.35,9.753e-05,2]
[347496433,1735877433727,-500.0,9.753e-05,2]
[347496435,1735877433737,-549.2,9.753e-05,2]
[347496437,1735877433750,-589.68,9.753e-05,2]
[347496439,1735877433759,-500.0,9.753e-05,2]
[347496441,1735877433769,-500.0,9.753e-05,2]
[347496443,1735877433778,-500.0,9.753e-05,2]
[347496445,1735877433788,-849.71,9.753e-05,2]
[347496447,1735877433797,-500.0,9.753e-05,2]
[347496449,1735877433806,-500.0,9.753e-05,2]
[347496451,1735877433815,-500.0,9.753e-05,2]
[347496453,1735877433825,-1226.94,9.753e-05,2]
[347496455,1735877433834,-1134.55,9.753e-05,2]
[347496457,1735877433843,-500.0,9.753e-05,2]
[347496459,1735877433853,-761.61,9.753e-05,2]
[347496461,1735877433862,-1644.29,9.753e-05,2]
[347496463,1735877433871,-500.0,9.753e-05,2]
[347496465,1735877433880,-500.0,9.753e-05,2]
[347496467,1735877433889,-500.0,9.753e-05,2]
[347496469,1735877433899,-500.0,9.753e-05,2]
[347496471,1735877433907,-500.0,9.753e-05,2]
[347496473,1735877433917,-500.0,9.753e-05,2]
[347496475,1735877433927,-500.0,9.753e-05,2]
[347496477,1735877433936,-3264.94,9.753e-05,2]
[347496479,1735877433946,-500.0,9.753e-05,2]
[347496481,1735877433955,-500.0,9.753e-05,2]
[347496483,1735877433964,-500.0,9.753e-05,2]
[347496485,1735877433974,-500.0,9.753e-05,2]
[347496487,1735877433984,-1448.01,9.753e-05,2]
[347496489,1735877433997,-2361.57,9.753e-05,2]
[347496491,1735877434007,-159.68923544,9.753e-05,2]
[347496493,1735877434016,-500.0,9.753e-05,2]
[347496495,1735877434025,-532.42,9.753e-05,2]
[347496497,1735877434036,-500.0,9.753e-05,2]
[347496499,1735877434046,-500.0,9.753e-05,2]
[347496500,1735877434055,-1269.37,9.753e-05,2]
[347496502,1735877434066,-568.28,9.753e-05,2]
[347496504,1735877434076,-500.0,9.753e-05,2]
[347496506,1735877434086,-3247.08,9.753e-05,2]
[347496508,1735877434095,-500.0,9.753e-05,2]
[347496510,1735877434105,-1248.03,9.753e-05,2]
[347496512,1735877434115,-500.0,9.753e-05,2]
[347496514,1735877434124,-500.0,9.753e-05,2]
[347496516,1735877434134,-500.0,9.753e-05,2]
[347496518,1735877434143,-2099.47,9.753e-05,2]
[347496520,1735877434153,-1637.15,9.753e-05,2]
[347496522,1735877434164,-500.0,9.753e-05,2]
[347496524,1735877434173,-1453.65,9.753e-05,2]
[347496526,1735877434183,-500.0,9.753e-05,2]
[347496528,1735877434192,-500.0,9.753e-05,2]
[347496530,1735877434201,-1216.27,9.753e-05,2]
[347496532,1735877434211,-500.0,9.753e-05,2]
[347496534,1735877434220,-500.0,9.753e-05,2]
[347496537,1735877434235,-500.0,9.753e-05,2]
[347496539,1735877434244,-1723.25,9.753e-05,2]
[347496540,1735877434254,-500.0,9.753e-05,2]
[347496542,1735877434264,-936.19,9.753e-05,2]
[347496544,1735877434274,-500.0,9.753e-05,2]
[347496546,1735877434283,-500.0,9.753e-05,2]
[347496548,1735877434293,-471.32173924,9.753e-05,2]
[347496551,1735877434303,-1440.81,9.753e-05,2]
[347496552,1735877434313,-1017.46,9.753e-05,2]
[347496554,1735877434322,-500.0,9.753e-05,2]
[347496556,1735877434332,-500.0,9.753e-05,2]
[347496559,1735877434342,-500.0,9.753e-05,2]
[347496561,1735877434353,-500.0,9.753e-05,2]
[347496562,1735877434363,-500.0,9.753e-05,2]
[347496564,1735877434373,-500.0,9.753e-05,2]
[347496566,1735877434382,-500.0,9.753e-05,2]
[347496568,1735877434391,-500.0,9.753e-05,2]
[347496570,1735877434401,-500.0,9.753e-05,2]
[347496572,1735877434411,-500.0,9.753e-05,2]
[347496574,1735877434420,-1772.93,9.753e-05,2]
[347496576,1735877434429,-500.0,9.753e-05,2]
[347496578,1735877434440,-500.0,9.753e-05,2]
[347496580,1735877434449,-500.0,9.753e-05,2]
[347496582,1735877434459,-500.0,9.753e-05,2]
[347496584,1735877434468,-744.6,9.753e-05,2]
[347496586,1735877434479,-794.72,9.753e-05,2]
[347496588,1735877434488,-500.0,9.753e-05,2]
[347496590,1735877434497,-789.68,9.753e-05,2]
[347496592,1735877434507,-314.24975507,9.753e-05,2]
[347496855,1735877439170,-830.44,9.752e-05,2]
[347496856,1735877439179,-129.56,9.752e-05,2]
[347496857,1735877439190,-451.67,9.752e-05,2]
[347496858,1735877439199,-185.75024493,9.753e-05,2]
[347496859,1735877439208,-500.0,9.753e-05,2]
[347496860,1735877439218,-500.0,9.753e-05,2]
[347496861,1735877439227,-500.0,9.753e-05,2]
[347496862,1735877439237,-823.89,9.753e-05,2]
[347496863,1735877439246,-500.0,9.753e-05,2]
[347496864,1735877439256,-565.52586593,9.753e-05,2]
[347496865,1735877439265,-500.0,9.753e-05,2]
[347496866,1735877439275,-500.0,9.753e-05,2]
[347496867,1735877439284,-500.0,9.753e-05,2]
[347496868,1735877439293,-1415.00612247,9.753e-05,2]
[347496869,1735877439305,-1241.47387753,9.753e-05,2]
[347496870,1735877439314,-500.0,9.753e-05,2]
[347496871,1735877439323,-500.0,9.753e-05,2]
[347496872,1735877439332,-526.69,9.753e-05,2]
[347496873,1735877439341,-500.0,9.753e-05,2]
[347496874,1735877439351,-984.12,9.753e-05,2]
[347496875,1735877439360,-500.0,9.753e-05,2]
[347496876,1735877439369,-500.0,9.753e-05,2]
[347496877,1735877439379,-500.0,9.753e-05,2]
[347496878,1735877439388,-1691.6,9.753e-05,2]
[347496879,1735877439397,-1168.04,9.753e-05,2]
[347496880,1735877439406,-500.0,9.753e-05,2]
[347496881,1735877439415,-500.0,9.753e-05,2]
[347496882,1735877439424,-500.0,9.753e-05,2]
[347496883,1735877439433,-500.0,9.753e-05,2]
[347496884,1735877439442,-500.0,9.753e-05,2]
[347496885,1735877439451,-500.0,9.753e-05,2]
[347496886,1735877439460,-907.09,9.753e-05,2]
[347496887,1735877439472,-500.0,9.753e-05,2]
[347496888,1735877439492,-500.0,9.753e-05,2]
[347496889,1735877439502,-500.0,9.753e-05,2]
[347496890,1735877439511,-500.0,9.753e-05,2]
[347496891,1735877439520,-500.0,9.753e-05,2]
[347496892,1735877439530,-569.81865174,9.753e-05,2]
[347496893,1735877439539,-500.0,9.753e-05,2]
[347496894,1735877439548,-2809.34,9.753e-05,2]
[347496895,1735877439557,-500.0,9.753e-05,2]
[347496896,1735877439566,-500.0,9.753e-05,2]
[347496897,1735877439575,-529.44,9.753e-05,2]
[347496898,1735877439585,-500.0,9.753e-05,2]
[347496899,1735877439594,-500.0,9.753e-05,2]
[347496900,1735877439603,-500.0,9.753e-05,2]
[347496901,1735877439612,-500.0,9.753e-05,2]
[347496902,1735877439621,-500.0,9.753e-05,2]
[347496903,1735877439630,-500.0,9.753e-05,2]
[347496904,1735877439639,-500.0,9.753e-05,2]
[347496905,1735877439649,-500.0,9.753e-05,2]
[347496906,1735877439658,-500.0,9.753e-05,2]
[347496907,1735877439668,-500.0,9.753e-05,2]
[347496908,1735877439677,-500.0,9.753e-05,2]
[347496909,1735877439687,-500.0,9.753e-05,2]
[347496910,1735877439696,-500.0,9.753e-05,2]
[347496911,1735877439705,-500.0,9.753e-05,2]
[347496912,1735877439714,-500.0,9.753e-05,2]
[347496913,1735877439723,-2944.78,9.753e-05,2]
[347496914,1735877439733,-500.0,9.753e-05,2]
[347496915,1735877439742,-653.35,9.753e-05,2]
[347496916,1735877439753,-500.66038946,9.753e-05,2]
[347496917,1735877439762,-500.0,9.753e-05,2]
[347496918,1735877439771,-157.45784498,9.753e-05,2]
[347496919,1735877439781,-500.0,9.753e-05,2]
[347496920,1735877439790,-500.0,9.753e-05,2]
[347496921,1735877439799,-500.0,9.753e-05,2]
[347496922,1735877439808,-484.0175084,9.753e-05,2]
[347496923,1735877439817,-569.11,9.753e-05,2]
[347496924,1735877439827,-590.41,9.753e-05,2]
[347496925,1735877439835,-500.0,9.753e-05,2]
[347496926,1735877439845,-1864.57,9.753e-05,2]
[347496927,1735877439854,-1670.07,9.753e-05,2]
[347496928,1735877439864,-500.0,9.753e-05,2]
[347496929,1735877439873,-500.0,9.753e-05,2]
[347496930,1735877439882,-500.0,9.753e-05,2]
[347496931,1735877439892,-514.06,9.753e-05,2]
[347496932,1735877439901,-500.0,9.753e-05,2]
[347496933,1735877439910,-505.64,9.753e-05,2]
[347496934,1735877439918,-500.0,9.753e-05,2]
[347496935,1735877439927,-3242.65,9.753e-05,2]
[347496936,1735877439937,-500.0,9.753e-05,2]
[347496937,1735877439946,-500.0,9.753e-05,2]
[347496938,1735877439955,-500.0,9.753e-05,2]
[347496939,1735877439964,-500.0,9.753e-05,2]
[347496940,1735877439974,-500.0,9.753e-05,2]
[347496941,1735877439986,-500.0,9.753e-05,2]
[347496942,1735877440001,-500.0,9.753e-05,2]
[347496943,1735877440010,-500.0,9.753e-05,2]
[347496944,1735877440020,-500.0,9.753e-05,2]
[347496945,1735877440030,-500.0,9.753e-05,2]
[347496946,1735877440039,-500.0,9.753e-05,2]
[347496947,1735877440049,-500.0,9.753e-05,2]
[347496948,1735877440059,-500.0,9.753e-05,2]
[347496949,1735877440069,-500.0,9.753e-05,2]
[347496950,1735877440078,-669.0,9.753e-05,2]
[347496951,1735877440087,-500.0,9.753e-05,2]
[347496952,1735877440096,-500.0,9.753e-05,2]
[347496953,1735877440105,-687.19,9.753e-05,2]
[347496954,1735877440114,-262.95918279,9.753e-05,2]
[347496955,1735877440129,-237.04081721,9.753e-05,2]
[347496956,1735877440138,-1496.24,9.753e-05,2]
[347496957,1735877440147,-500.0,9.753e-05,2]
[347496959,1735877440156,-500.0,9.753e-05,2]
[347496960,1735877440166,-500.0,9.753e-05,2]
[347496961,1735877440175,-500.0,9.753e-05,2]
[347496962,1735877440184,-663.28,9.753e-05,2]
[347496963,1735877440194,-1312.58,9.753e-05,2]
[347496964,1735877440204,-500.0,9.753e-05,2]
[347496966,1735877440213,-500.0,9.753e-05,2]
[347496967,1735877440222,-693.04,9.753e-05,2]
[347496968,1735877440232,-500.0,9.753e-05,2]
[347496969,1735877440241,-500.0,9.753e-05,2]
[347496970,1735877440250,-876.81,9.753e-05,2]
[347496971,1735877440259,-500.0,9.753e-05,2]
[347496972,1735877440269,-500.0,9.753e-05,2]
[347496973,1735877440278,-500.0,9.753e-05,2]
[347496974,1735877440289,-1054.44,9.753e-05,2]
[347496975,1735877440298,-500.0,9.753e-05,2]
[347496976,1735877440307,-581.91,9.753e-05,2]
[347496977,1735877440317,-1099.07,9.753e-05,2]
[347496978,1735877440327,-500.0,9.753e-05,2]
[347496979,1735877440336,-500.0,9.753e-05,2]
[347496980,1735877440345,-500.0,9.753e-05,2]
[347496981,1735877440355,-500.0,9.753e-05,2]
[347496982,1735877440364,-500.0,9.753e-05,2]
[347496983,1735877440374,-1256.07,9.753e-05,2]
[347496984,1735877440383,-521.57384955,9.753e-05,2]
[347496985,1735877440425,-1165.24615045,9.753e-05,2]
[347496986,1735877440435,-500.0,9.753e-05,2]